bitfinex/quotes_BTCUSD_20240821
["timestamp","ask_amount","ask_price","bid_price","bid_amount"]
[1724207639678,0.003,59500.0,59499.0,0.51458515]
[1724207640112,0.003,59500.0,59499.0,0.38913857]
[1724207641575,0.003821,59502.0,59499.0,0.53143857]
[1724207641823,0.003821,59502.0,59501.0,0.1177]
[1724207641824,0.000821,59502.0,59501.0,0.1177]
[1724207642056,0.00822,59507.0,59502.0,0.1423]
[1724207642290,0.00822,59507.0,59506.0,0.1177]
[1724207642533,0.00822,59507.0,59503.0,0.33218686]
[1724207642534,0.001,59504.0,59503.0,0.33218686]
[1724207642771,0.001,59504.0,59503.0,1.22759791]
[1724207643007,0.003,59504.0,59503.0,1.30583729]
[1724207643245,0.003,59504.0,59503.0,0.37308794]
[1724207643462,0.003,59504.0,59503.0,0.47338844]
[1724207643463,0.0633,59504.0,59503.0,0.47338844]
[1724207643693,0.0633,59504.0,59503.0,0.08923228]
[1724207644175,0.14029773,59504.0,59503.0,0.028]
[1724207644409,0.14029773,59504.0,59503.0,0.06414815]
[1724207644665,0.14029773,59504.0,59503.0,0.07414815]
[1724207644917,0.14029773,59504.0,59503.0,0.06014815]
[1724207645651,0.14029773,59504.0,59503.0,0.01]
[1724207646096,0.14029773,59504.0,59503.0,0.02]
[1724207646327,0.14029773,59504.0,59503.0,0.46837761]
[1724207646560,0.003,59504.0,59503.0,0.57245563]
[1724207646798,0.003,59504.0,59503.0,0.47214355]
[1724207647048,0.003,59504.0,59503.0,0.59753365]
[1724207648298,0.01122,59507.0,59503.0,0.47214355]
[1724207648539,0.001,59505.0,59504.0,0.47341488]
[1724207648988,0.003,59505.0,59504.0,0.47341488]
[1724207649201,0.003,59505.0,59504.0,0.37314355]
[1724207649384,0.003,59505.0,59504.0,0.47339463]
[1724207649632,0.003,59505.0,59504.0,0.37314355]
[1724207649838,0.003,59505.0,59504.0,0.3625235]
[1724207650051,0.003,59505.0,59504.0,0.46277458]
[1724207650282,0.003,59505.0,59504.0,0.09318081]
[1724207650493,0.003,59505.0,59504.0,0.018]
[1724207654318,0.003,59505.0,59504.0,0.06811216]
[1724207654558,0.003822,59505.0,59504.0,0.06811216]
[1724207657484,0.003822,59505.0,59504.0,0.09317225]
[1724207658956,0.001822,59505.0,59504.0,0.2919181]
[1724207659458,0.003822,59505.0,59504.0,0.29189957]
[1724207659963,0.003822,59505.0,59504.0,0.29526039]
[1724207661643,0.003822,59505.0,59504.0,0.22956039]
[1724207661875,0.003822,59505.0,59504.0,0.14656039]
[1724207662134,0.003822,59505.0,59504.0,0.018]
[1724207662609,0.003822,59505.0,59504.0,0.14319957]
[1724207664563,0.00822,59507.0,59505.0,0.139]
[1724207664784,0.00822,59507.0,59506.0,0.63311655]
[1724207665009,0.00822,59507.0,59506.0,1.30556732]
[1724207665219,0.00822,59507.0,59506.0,1.15538265]
[1724207665433,0.00822,59507.0,59506.0,1.30552744]
[1724207665679,0.00822,59507.0,59506.0,1.15538265]
[1724207666424,0.00822,59507.0,59506.0,0.26006038]
[1724207666651,0.00822,59507.0,59506.0,0.63309545]
[1724207666874,0.00822,59507.0,59506.0,1.15534454]
[1724207667107,0.00822,59507.0,59506.0,1.16934454]
[1724207667343,0.00822,59507.0,59506.0,0.27406038]
[1724207667580,0.00822,59507.0,59506.0,0.28806038]
[1724207668282,0.00822,59507.0,59506.0,1.1833469]
[1724207669127,0.00822,59507.0,59506.0,0.81031085]
[1724207669307,0.00822,59507.0,59506.0,0.28806038]
[1724207670897,0.00822,59507.0,59506.0,0.32182038]
[1724207671698,0.00822,59507.0,59506.0,0.33179007]
[1724207672576,0.00822,59507.0,59506.0,0.31779007]
[1724207672733,0.00822,59507.0,59506.0,0.33179007]
[1724207672938,0.00822,59507.0,59506.0,0.31779007]
[1724207673138,0.00822,59507.0,59506.0,0.33179007]
[1724207673340,0.00361975,59511.0,59506.0,1.0879919]
[1724207673577,0.00361975,59511.0,59510.0,0.2594]
[1724207673956,0.00361975,59511.0,59510.0,1.15796184]
[1724207674383,0.00361975,59511.0,59510.0,1.30806248]
[1724207674840,0.00361975,59511.0,59510.0,1.17197503]
[1724207675269,0.00361975,59511.0,59510.0,1.32200353]
[1724207676161,0.00361975,59511.0,59510.0,1.33600353]
[1724207676408,0.00361975,59511.0,59510.0,1.18597503]
[1724207677340,0.00361975,59511.0,59510.0,0.66376627]
[1724207678713,0.00341748,59511.0,59510.0,0.66376627]
[1724207679703,1e-08,59516.0,59515.0,0.1177]
[1724207679926,1e-08,59516.0,59515.0,0.62620071]
[1724207681412,1e-08,59516.0,59515.0,0.64020071]
[1724207681664,1e-08,59516.0,59515.0,1.29610657]
[1724207682385,1e-08,59516.0,59515.0,1.31010657]
[1724207682804,1e-08,59516.0,59515.0,1.29610657]
[1724207683026,1e-08,59516.0,59515.0,0.75996071]
[1724207683295,1e-08,59516.0,59515.0,0.67026071]
[1724207683522,1e-08,59516.0,59515.0,0.78796071]
[1724207683732,1e-08,59516.0,59515.0,0.75420071]
[1724207683959,1e-08,59516.0,59515.0,0.74020071]
[1724207684183,1e-08,59516.0,59515.0,0.72620071]
[1724207684397,1e-08,59516.0,59515.0,0.74020071]
[1724207684631,0.1,59523.0,59522.0,0.1177]
[1724207686398,0.1,59523.0,59522.0,0.1317]
[1724207686846,0.1,59523.0,59522.0,0.1457]
[1724207688785,0.1,59523.0,59522.0,0.028]
[1724207688786,0.2424,59523.0,59522.0,0.028]
[1724207689008,0.2424,59523.0,59522.0,0.1457]
[1724207689220,0.2424,59523.0,59522.0,0.028]
[1724207691001,0.243222,59523.0,59522.0,0.028]
[1724207691199,0.244222,59523.0,59522.0,0.028]
[1724207691471,0.243222,59523.0,59522.0,0.028]
[1724207693216,0.100822,59523.0,59522.0,0.1457]
[1724207693898,0.100822,59523.0,59522.0,0.29]
[1724207694242,0.100822,59523.0,59522.0,0.33989987]
[1724207694443,1e-08,59523.0,59522.0,0.29]
[1724207694644,1e-08,59523.0,59522.0,0.34325504]
[1724207695049,1e-08,59523.0,59522.0,0.32925504]
[1724207696286,1e-08,59523.0,59522.0,0.34325504]
[1724207696491,1e-08,59523.0,59522.0,0.34324709]
[1724207696663,1e-08,59523.0,59522.0,0.26535954]
[1724207696861,1e-08,59523.0,59522.0,0.27935954]
[1724207697065,1e-08,59523.0,59522.0,0.34324843]
[1724207697426,1e-08,59523.0,59522.0,0.74115305]
[1724207697758,1e-08,59523.0,59522.0,0.66629833]
[1724207698194,1e-08,59523.0,59522.0,0.76610462]
[1724207698417,1e-08,59523.0,59522.0,0.75210462]
[1724207698624,1e-08,59523.0,59522.0,0.63829833]
[1724207698879,1e-08,59523.0,59522.0,0.66629833]
[1724207699109,1e-08,59523.0,59522.0,0.76606833]
[1724207699429,1e-08,59523.0,59522.0,0.75206833]
[1724207699641,1e-08,59523.0,59522.0,0.65228986]
[1724207699871,1e-08,59523.0,59522.0,0.75206833]
[1724207700105,1e-08,59523.0,59522.0,0.66628986]
[1724207700334,1e-08,59523.0,59522.0,0.76606833]
[1724207701016,1e-08,59523.0,59522.0,0.79982833]
[1724207701241,1e-08,59523.0,59522.0,0.82477295]
[1724207701871,1e-08,59523.0,59522.0,0.60008986]
[1724207702106,1e-08,59523.0,59521.0,0.07486724]
[1724207702342,1e-08,59523.0,59522.0,0.07486724]
[1724207702581,1e-08,59523.0,59522.0,0.028]
[1724207702817,1e-08,59523.0,59522.0,0.014]
[1724207703048,1e-08,59523.0,59521.0,0.19256724]
[1724207703286,0.00100001,59523.0,59522.0,0.08886724]
[1724207703530,1e-08,59523.0,59521.0,0.20656724]
[1724207704244,1e-08,59523.0,59522.0,0.04994033]
[1724207704471,1e-08,59523.0,59522.0,0.0499396]
[1724207704696,1e-08,59523.0,59522.0,0.07486724]
[1724207704930,1e-08,59523.0,59522.0,0.08886724]
[1724207705488,1e-08,59523.0,59522.0,0.47584285]
[1724207705701,1e-08,59523.0,59522.0,0.46184285]
[1724207705953,1e-08,59523.0,59522.0,0.47584285]
[1724207706456,0.06440001,59523.0,59522.0,0.47594069]
[1724207706715,0.06340001,59523.0,59522.0,0.47594069]
[1724207707443,1e-08,59523.0,59522.0,0.50096962]
[1724207707662,1e-08,59523.0,59522.0,0.40097802]
[1724207708093,1e-08,59523.0,59522.0,0.48697271]
[1724207708298,1e-08,59523.0,59522.0,0.37297802]
[1724207708506,1e-08,59523.0,59522.0,0.40097802]
[1724207708927,1e-08,59523.0,59522.0,0.37297802]
[1724207709148,0.08180001,59523.0,59522.0,0.38697802]
[1724207709371,0.08180001,59523.0,59522.0,0.52596753]
[1724207709583,0.08180001,59523.0,59522.0,0.51196753]
[1724207710429,0.08180001,59523.0,59522.0,0.38697802]
[1724207711079,1e-08,59523.0,59522.0,0.37297802]
[1724207711278,1e-08,59523.0,59522.0,0.38697802]
[1724207711501,0.14702,59526.0,59522.0,0.40097802]
[1724207711772,0.14702,59526.0,59525.0,0.24288637]
[1724207711985,0.14702,59526.0,59525.0,0.49067802]
[1724207712201,0.00822,59526.0,59525.0,0.49067802]
[1724207713093,0.00822,59526.0,59525.0,0.50467802]
[1724207714726,0.00822,59526.0,59525.0,0.51867802]
[1724207715692,0.00822,59526.0,59525.0,1.0408065]
[1724207715925,0.00822,59526.0,59525.0,1.19078103]
[1724207716144,0.00822,59526.0,59525.0,0.52296858]
[1724207718683,0.00822,59526.0,59525.0,1.19507729]
[1724207718900,0.00822,59526.0,59525.0,1.27027729]
[1724207719555,0.00822,59526.0,59525.0,1.26598673]
[1724207720484,0.00822,59526.0,59525.0,1.11599932]
[1724207720695,0.00822,59526.0,59525.0,1.17949932]
[1724207720911,0.00822,59526.0,59525.0,1.15149932]
[1724207721144,0.00822,59526.0,59525.0,1.16549932]
[1724207721359,0.00822,59526.0,59525.0,0.99829932]
[1724207721592,0.00822,59526.0,59525.0,0.40097802]
[1724207721811,0.00822,59526.0,59525.0,0.40095047]
[1724207722050,0.00822,59526.0,59525.0,0.37295047]
[1724207722481,0.00822,59526.0,59525.0,0.40095047]
[1724207723163,0.00822,59526.0,59525.0,0.38695047]
[1724207723894,0.00822,59526.0,59525.0,0.37295047]
[1724207724113,0.00822,59526.0,59525.0,0.38695047]
[1724207725082,0.00822,59526.0,59525.0,0.40095047]
[1724207725790,0.00822,59526.0,59525.0,0.39033506]
[1724207726407,0.00822,59526.0,59525.0,0.91247795]
[1724207726608,0.00822,59526.0,59525.0,1.03017795]
[1724207726816,0.00822,59526.0,59525.0,0.50803506]
[1724207727029,0.00822,59526.0,59525.0,0.91247795]
[1724207727283,0.15182,59526.0,59525.0,0.91247796]
[1724207727483,0.15182,59526.0,59525.0,0.39033506]
[1724207727916,0.15182,59526.0,59525.0,0.37633506]
[1724207728850,0.15182,59526.0,59525.0,0.39033506]
[1724207732339,0.15182,59526.0,59525.0,0.51559094]
[1724207733016,0.15182,59526.0,59525.0,0.15325958]
[1724207733637,0.15182,59526.0,59525.0,0.028]
[1724207740934,0.15182,59526.0,59525.0,0.0289031]
[1724207741160,0.14882,59526.0,59525.0,0.0289031]
[1724207741362,0.15182,59526.0,59525.0,0.0289031]
[1724207741815,0.07322,59526.0,59525.0,0.0289031]
[1724207742778,0.01122,59526.0,59525.0,0.0289031]
[1724207745172,0.01122,59526.0,59525.0,0.40187507]
[1724207745428,0.00822,59526.0,59525.0,0.40187507]
[1724207745638,0.00922,59526.0,59525.0,0.40187507]
[1724207746619,0.01122,59526.0,59525.0,0.40187507]
[1724207747289,0.01122,59526.0,59525.0,0.40187509]
[1724207747516,0.00822,59526.0,59525.0,0.48317509]
[1724207747976,0.00922,59526.0,59525.0,0.48317509]
[1724207748894,0.01122,59526.0,59525.0,0.48317509]
[1724207749594,0.14752,59526.0,59525.0,0.40187509]
[1724207751975,0.14752,59526.0,59525.0,0.0289031]
[1724207752179,0.14752,59526.0,59525.0,0.40187821]
[1724207756357,0.19994093,59526.0,59525.0,0.40187821]
[1724207761026,0.19794093,59526.0,59525.0,0.40187872]
[1724207761239,0.12174093,59526.0,59525.0,0.40187872]
[1724207761928,0.12353873,59526.0,59525.0,0.40187872]
[1724207762148,0.06043873,59526.0,59525.0,0.40187872]
[1724207762382,0.06343873,59526.0,59525.0,0.40187872]
[1724207765891,0.06343873,59526.0,59525.0,0.40187674]
[1724207766661,0.06043873,59526.0,59525.0,0.40187674]
[1724207766888,0.06043873,59526.0,59525.0,0.48067674]
[1724207767122,0.0090178,59526.0,59525.0,0.48067674]
[1724207767578,0.14652062,59526.0,59525.0,0.40187674]
[1724207767821,0.20912062,59526.0,59525.0,0.40187674]
[1724207770949,0.20912062,59526.0,59525.0,0.40187814]
[1724207772205,0.32861835,59526.0,59525.0,0.40187814]
[1724207772414,0.32861835,59526.0,59525.0,0.0289031]
[1724207773046,0.32761835,59526.0,59525.0,0.0009031]
[1724207773288,0.32861835,59526.0,59525.0,0.0009031]
[1724207773541,0.36332395,59526.0,59525.0,0.0059031]
[1724207773967,0.36332395,59526.0,59525.0,0.0109031]
[1724207774175,0.46332395,59526.0,59525.0,0.0109031]
[1724207774833,0.46332395,59526.0,59525.0,0.0059031]
[1724207775271,0.46332395,59526.0,59525.0,0.0009031]
[1724207775476,0.46532395,59526.0,59525.0,0.0009031]
[1724207776110,0.46332395,59526.0,59525.0,0.0009031]
[1724207776321,0.46532395,59526.0,59525.0,0.0009031]
[1724207778034,0.46532395,59526.0,59522.0,0.0009031]
[1724207778035,0.34469773,59524.0,59522.0,0.0009031]
[1724207778248,0.31926557,59523.0,59522.0,0.0009031]
[1724207778486,0.41926557,59523.0,59522.0,0.0009031]
[1724207778678,0.41926557,59523.0,59516.0,0.0009031]
[1724207778679,0.23379773,59517.0,59516.0,0.0009031]
[1724207778886,0.62974534,59517.0,59516.0,0.0009031]
[1724207779304,0.63174534,59517.0,59516.0,0.0009031]
[1724207780566,0.80764534,59517.0,59516.0,0.0009031]
[1724207781259,0.81774682,59517.0,59516.0,0.0009031]
[1724207781474,0.78970203,59517.0,59516.0,0.0039031]
[1724207781689,0.78970203,59517.0,59516.0,0.0069031]
[1724207783685,0.28600055,59517.0,59516.0,0.0069031]
[1724207784394,0.25600055,59517.0,59516.0,0.0069031]
[1724207784626,0.20359773,59517.0,59516.0,0.0069031]
[1724207784874,0.25593392,59517.0,59516.0,0.0069031]
[1724207785620,0.20359773,59517.0,59516.0,0.0069031]
[1724207785862,0.25592807,59517.0,59516.0,0.0069031]
[1724207787196,0.20359773,59517.0,59516.0,0.0069031]
[1724207787416,0.25593516,59517.0,59516.0,0.0069031]
[1724207787857,0.20359773,59517.0,59516.0,0.0069031]
[1724207788327,0.00479773,59517.0,59516.0,0.0069031]
[1724207788841,0.003,59517.0,59516.0,0.0867031]
[1724207789273,0.003,59517.0,59516.0,0.0807031]
[1724207789701,0.00479773,59517.0,59516.0,0.0837031]
[1724207789945,0.00479773,59517.0,59516.0,0.0039031]
[1724207790199,0.00479773,59517.0,59516.0,0.0069031]
[1724207790441,0.00479773,59517.0,59516.0,0.0039031]
[1724207791487,0.00479773,59517.0,59516.0,0.0009031]
[1724207791720,0.00479773,59517.0,59516.0,0.0119031]
[1724207792188,0.00479773,59517.0,59516.0,0.0229031]
[1724207792423,0.00479773,59517.0,59516.0,0.0119031]
[1724207792858,0.00479773,59517.0,59516.0,0.0239031]
[1724207794067,0.14659773,59517.0,59516.0,0.0239031]
[1724207794303,0.20037573,59517.0,59516.0,0.0239031]
[1724207794555,0.36754201,59517.0,59516.0,0.0239031]
[1724207795089,0.36754201,59517.0,59516.0,0.0009031]
[1724207795320,0.36754201,59517.0,59516.0,0.0029031]
[1724207795551,0.36754201,59517.0,59516.0,0.0059031]
[1724207795812,0.36754201,59517.0,59516.0,0.0039031]
[1724207796314,0.36754201,59517.0,59516.0,0.0059031]
[1724207798191,0.27991535,59517.0,59516.0,0.0059031]
[1724207801598,0.28091535,59517.0,59516.0,0.0059031]
[1724207801821,0.27991535,59517.0,59516.0,0.0059031]
[1724207802248,0.28091535,59517.0,59516.0,0.0059031]
[1724207802916,0.27991535,59517.0,59516.0,0.0059031]
[1724207803405,0.27845033,59517.0,59516.0,0.0059031]
[1724207803631,0.27991535,59517.0,59516.0,0.0059031]
[1724207805686,0.34026689,59517.0,59516.0,0.0059031]
[1724207806845,0.27991535,59517.0,59516.0,0.0059031]
[1724207807526,0.27845033,59517.0,59516.0,0.0059031]
[1724207807747,0.15231298,59517.0,59516.0,0.0059031]
[1724207807932,0.05231298,59517.0,59515.0,0.07411932]
[1724207808201,0.05231298,59516.0,59515.0,0.07411932]
[1724207808424,0.05231298,59519.0,59515.0,0.07411932]
[1724207809325,0.05231298,59519.0,59515.0,0.07611932]
[1724207809762,0.05231298,59519.0,59515.0,0.08011932]
[1724207810222,0.000822,59522.0,59515.0,0.07611932]
[1724207810223,0.05231298,59518.0,59515.0,0.07611932]
[1724207810437,0.05231298,59517.0,59515.0,0.07611932]
[1724207810641,0.05231298,59516.0,59515.0,0.07411932]
[1724207810865,0.05231298,59521.0,59515.0,0.07411932]
[1724207811758,0.05231298,59521.0,59515.0,0.07502352]
[1724207812454,0.05231298,59521.0,59515.0,0.07802352]
[1724207812678,0.13926502,59520.0,59515.0,0.0039042]
[1724207812917,0.07155298,59519.0,59515.0,0.0039042]
[1724207813149,0.053778,59518.0,59515.0,0.0039042]
[1724207813358,0.053778,59518.0,59515.0,0.0059042]
[1724207813359,0.05231298,59517.0,59515.0,0.0059042]
[1724207813574,0.00146502,59516.0,59515.0,0.0039042]
[1724207813790,0.053778,59516.0,59515.0,0.0009042]
[1724207814021,0.053778,59516.0,59515.0,0.0019042]
[1724207814305,0.053778,59516.0,59515.0,0.0009042]
[1724207814517,0.053778,59516.0,59515.0,0.0029042]
[1724207814724,0.05231298,59516.0,59515.0,0.0029042]
[1724207814944,0.05231298,59517.0,59515.0,0.0009042]
[1724207815157,0.05231298,59517.0,59515.0,0.0039042]
[1724207815371,0.05231298,59517.0,59515.0,0.0079042]
[1724207816458,0.00146502,59516.0,59515.0,0.0039042]
[1724207816668,0.053778,59516.0,59515.0,0.0039042]
[1724207816852,0.053778,59516.0,59515.0,0.0089042]
[1724207817292,0.053778,59516.0,59515.0,0.0059042]
[1724207817508,0.07990398,59516.0,59515.0,0.0059042]
[1724207817729,0.07990398,59516.0,59515.0,0.0069042]
[1724207817941,0.07990398,59516.0,59515.0,0.0129042]
[1724207818159,0.08076344,59516.0,59515.0,0.0069042]
[1724207818372,0.08076344,59516.0,59515.0,0.0009042]
[1724207818595,0.08076344,59516.0,59515.0,0.0049042]
[1724207819768,0.05463746,59516.0,59515.0,0.0099042]
[1724207819999,0.05317244,59516.0,59515.0,0.0099042]
[1724207820230,0.05317244,59516.0,59515.0,0.0049042]
[1724207820467,0.05317244,59516.0,59515.0,0.0059042]
[1724207820698,0.07241619,59516.0,59515.0,0.0059042]
[1724207820945,0.07241619,59516.0,59515.0,0.0049042]
[1724207821139,0.07241619,59516.0,59515.0,0.0109042]
[1724207821412,0.07241619,59516.0,59515.0,0.0069042]
[1724207821645,0.07241619,59516.0,59515.0,0.0009042]
[1724207821834,0.07241619,59516.0,59515.0,0.0039042]
[1724207822383,0.07388121,59516.0,59515.0,0.0009042]
[1724207823397,0.05463746,59516.0,59515.0,0.0009042]
[1724207823890,0.05463746,59516.0,59515.0,0.0079042]
[1724207824127,0.05317244,59516.0,59515.0,0.0079042]
[1724207825998,0.20203746,59516.0,59515.0,0.0079042]
[1724207826211,0.30203746,59516.0,59515.0,0.0079042]
[1724207826398,0.30103746,59516.0,59515.0,0.0079042]
[1724207826689,0.36452341,59516.0,59515.0,0.0079042]
[1724207826925,0.15317244,59516.0,59515.0,0.0079042]
[1724207827419,0.05317244,59516.0,59515.0,0.0079042]
[1724207828126,0.05317244,59516.0,59515.0,0.1505042]
[1724207831001,0.05317244,59516.0,59515.0,0.1435042]
[1724207831233,0.05317244,59516.0,59515.0,0.1465042]
[1724207831468,0.00085946,59516.0,59515.0,0.1585042]
[1724207831671,0.00085946,59516.0,59515.0,0.1555042]
[1724207831935,0.00085946,59516.0,59515.0,0.1435042]
[1724207832168,0.00085946,59516.0,59515.0,0.1685042]
[1724207832883,0.05316505,59516.0,59515.0,0.1685042]
[1724207833119,0.05316505,59516.0,59515.0,0.0259042]
[1724207833891,0.05316505,59516.0,59515.0,0.0139042]
[1724207834143,0.05316505,59516.0,59515.0,0.0009042]
[1724207834378,0.05316505,59516.0,59515.0,0.0259042]
[1724207835102,0.05316505,59516.0,59515.0,0.0009042]
[1724207835337,0.05316505,59516.0,59515.0,0.0089042]
[1724207835596,0.05398705,59516.0,59515.0,0.0159042]
[1724207835808,0.19158705,59516.0,59515.0,0.0079042]
[1724207836024,0.11775207,59516.0,59515.0,0.0079042]
[1724207836276,0.15398705,59516.0,59515.0,0.0079042]
[1724207836963,0.15398705,59516.0,59515.0,0.0009042]
[1724207837282,0.15398705,59516.0,59515.0,0.0089042]
[1724207837519,0.05398705,59516.0,59515.0,0.0169042]
[1724207837788,0.15398705,59516.0,59515.0,0.0169042]
[1724207838966,0.05398705,59516.0,59515.0,0.0169042]
[1724207839203,0.15398705,59516.0,59515.0,0.0169042]
[1724207841892,0.05398705,59516.0,59515.0,0.0169042]
[1724207842781,0.06961446,59516.0,59515.0,0.0169042]
[1724207843216,0.16961446,59516.0,59515.0,0.0169042]
[1724207843647,0.15398705,59516.0,59515.0,0.0169042]
[1724207844705,0.15378482,59516.0,59515.0,0.0950042]
[1724207844988,0.05378482,59516.0,59515.0,0.0950042]
[1724207845213,0.15378482,59516.0,59515.0,0.0950042]
[1724207846338,0.05378482,59516.0,59515.0,0.0950042]
[1724207847972,0.05378482,59516.0,59515.0,0.21172387]
[1724207848204,0.05378482,59516.0,59515.0,0.63489774]
[1724207848205,0.00147923,59516.0,59515.0,0.63489774]
[1724207848667,0.00147923,59516.0,59515.0,0.62689774]
[1724207848900,0.00147923,59516.0,59515.0,0.61889774]
[1724207849123,0.000822,59516.0,59515.0,0.62689774]
[1724207849352,0.000822,59516.0,59515.0,0.61379327]
[1724207849582,0.000822,59516.0,59515.0,0.63889774]
[1724207850326,0.000822,59516.0,59515.0,0.63089774]
[1724207850540,0.000822,59516.0,59515.0,0.61889774]
[1724207850751,0.000822,59516.0,59515.0,0.5306584]
[1724207850960,0.000822,59516.0,59515.0,0.64389774]
[1724207851173,0.000822,59516.0,59515.0,0.61889774]
[1724207851595,0.000822,59516.0,59515.0,0.54664403]
[1724207851807,0.000822,59516.0,59515.0,0.6467993]
[1724207852015,0.000822,59516.0,59515.0,0.2236888]
[1724207852237,0.000822,59516.0,59515.0,0.1736042]
[1724207852640,0.000822,59516.0,59515.0,0.24872734]
[1724207852902,0.000822,59516.0,59515.0,0.62177258]
[1724207853336,0.000822,59516.0,59515.0,0.62175973]
[1724207853750,0.000822,59516.0,59515.0,0.62175838]
[1724207855922,0.000822,59516.0,59515.0,0.24871449]
[1724207856558,0.000822,59516.0,59515.0,0.22366825]
[1724207856980,0.000822,59516.0,59515.0,0.1736042]
[1724207857635,0.000822,59516.0,59515.0,0.1596042]
[1724207857828,0.000822,59516.0,59515.0,0.1456042]
[1724207858139,0.000822,59516.0,59515.0,0.1736042]
[1724207866387,0.000822,59516.0,59515.0,0.22366457]
[1724207866650,0.000822,59516.0,59515.0,0.22366793]
[1724207868071,0.000822,59516.0,59515.0,0.17696439]
[1724207868296,0.000822,59516.0,59515.0,0.65013203]
[1724207868532,0.000822,59516.0,59515.0,0.55000457]
[1724207868774,0.000822,59516.0,59515.0,0.6751639]
[1724207869508,0.000822,59516.0,59515.0,0.54664438]
[1724207873664,0.000822,59516.0,59515.0,0.64675194]
[1724207874111,0.000822,59516.0,59515.0,0.58015194]
[1724207874989,0.000822,59516.0,59515.0,0.64545194]
[1724207876105,0.000822,59516.0,59515.0,0.64543229]
[1724207878298,0.000822,59516.0,59515.0,0.64542015]
[1724207878656,0.000822,59516.0,59515.0,0.54532954]
[1724207880470,0.000822,59516.0,59515.0,0.54532566]
[1724207882284,0.000822,59516.0,59515.0,0.67042195]
[1724207882517,0.000822,59516.0,59515.0,0.54532566]
[1724207882979,0.000822,59516.0,59515.0,0.58010427]
[1724207884152,0.000822,59516.0,59515.0,0.48002566]
[1724207884404,0.000822,59516.0,59515.0,0.58010427]
[1724207885868,0.000822,59516.0,59515.0,0.48002566]
[1724207886274,0.000822,59516.0,59515.0,0.60512195]
[1724207889078,0.000822,59516.0,59515.0,0.60528426]
[1724207889516,0.000822,59516.0,59515.0,0.48002791]
[1724207893351,0.000822,59516.0,59515.0,1.15255502]
[1724207893771,0.000822,59516.0,59515.0,1.15269918]
[1724207896496,0.000822,59516.0,59515.0,1.06263504]
[1724207896728,0.000822,59517.0,59515.0,1.06263504]
[1724207896943,0.000822,59517.0,59516.0,1.04564946]
[1724207897609,0.000822,59517.0,59516.0,0.89523084]
[1724207898307,0.000822,59517.0,59516.0,0.90923084]
[1724207898575,0.000822,59517.0,59516.0,0.38701285]
[1724207898797,0.000822,59517.0,59516.0,0.39129933]
[1724207899732,0.000822,59517.0,59516.0,0.40429933]
[1724207903571,0.000822,59517.0,59516.0,0.40430143]
[1724207904076,0.000822,59517.0,59516.0,0.40001092]
[1724207909459,0.000822,59517.0,59516.0,0.92222621]
[1724207910408,0.000822,59517.0,59516.0,1.07260325]
[1724207913545,0.000822,59517.0,59516.0,0.92222621]
[1724207917735,0.000822,59517.0,59516.0,0.92222623]
[1724207919189,0.000822,59517.0,59516.0,1.00022623]
[1724207923457,0.000822,59517.0,59516.0,1.00020956]
[1724207924786,0.000822,59517.0,59516.0,0.92220956]
[1724207927833,0.000822,59517.0,59516.0,0.92311376]
[1724207928058,0.000822,59517.0,59516.0,1.07361522]
[1724207928278,0.00061977,59517.0,59516.0,1.07363852]
[1724207930026,0.00061977,59517.0,59516.0,1.21613852]
[1724207930239,0.00061977,59517.0,59516.0,1.06563307]
[1724207936375,0.00061977,59517.0,59516.0,1.00143307]
[1724207942876,0.00061977,59517.0,59516.0,0.92313307]
[1724207947450,0.00061977,59517.0,59516.0,1.04043307]
[1724207947654,0.00061977,59517.0,59516.0,1.18343307]
[1724207949550,0.00061977,59517.0,59516.0,1.12043307]
[1724207954647,0.00061977,59517.0,59516.0,1.18643307]
[1724207954882,1e-08,59517.0,59516.0,1.18643307]
[1724207955130,1e-08,59517.0,59516.0,1.9323407]
[1724207955366,1e-08,59517.0,59516.0,1.17343307]
[1724207955605,1e-08,59517.0,59516.0,1.15943307]
[1724207956078,1e-08,59517.0,59516.0,1.17343307]
[1724207956316,1e-08,59517.0,59516.0,1.39562186]
[1724207957047,1e-08,59517.0,59516.0,1.17343307]
[1724207957302,1e-08,59517.0,59516.0,1.18643307]
[1724207957854,1e-08,59517.0,59516.0,1.17343307]
[1724207958111,1e-08,59517.0,59516.0,1.18743307]
[1724207958354,1e-08,59517.0,59516.0,1.40955019]
[1724207959758,1e-08,59517.0,59516.0,0.92413307]
[1724207960397,1e-08,59517.0,59516.0,1.07454941]
[1724207960842,1e-08,59517.0,59516.0,1.07453448]
[1724207962083,1e-08,59517.0,59516.0,0.92411656]
[1724207962316,1e-08,59517.0,59516.0,1.07453119]
[1724207962550,1e-08,59517.0,59516.0,0.92411656]
[1724207964512,1e-08,59517.0,59516.0,1.04141656]
[1724207964750,1e-08,59517.0,59516.0,1.12401656]
[1724207964990,1e-08,59517.0,59516.0,1.18811656]
[1724207965756,1e-08,59517.0,59516.0,1.18810778]
[1724207965992,1e-08,59517.0,59516.0,0.92410778]
[1724207966245,0.14400001,59517.0,59516.0,0.5272744]
[1724207966482,0.19622851,59517.0,59516.0,0.5272744]
[1724207966718,0.19622851,59517.0,59516.0,0.47713003]
[1724207966960,0.19622851,59517.0,59516.0,0.40190569]
[1724207967207,0.19622851,59517.0,59516.0,0.47419599]
[1724207967468,0.19622851,59517.0,59516.0,0.48219599]
[1724207967720,0.19622851,59517.0,59516.0,0.49119599]
[1724207968056,0.19622851,59517.0,59516.0,0.48319599]
[1724207969291,0.19622851,59517.0,59516.0,0.49119599]
[1724207969762,0.19622851,59517.0,59516.0,0.39090569]
[1724207970726,0.14400001,59517.0,59516.0,0.39090569]
[1724207971676,0.14400001,59517.0,59516.0,0.46608023]
[1724207972419,0.14400001,59517.0,59516.0,0.39090569]
[1724207972658,0.14400001,59517.0,59516.0,0.46608966]
[1724207975383,0.14400001,59517.0,59516.0,0.46615637]
[1724207975595,0.14400001,59517.0,59516.0,0.39095073]
[1724207975799,0.14400001,59517.0,59516.0,0.49122492]
[1724207977923,0.14400001,59517.0,59516.0,0.49119115]
[1724207978556,0.14400001,59517.0,59516.0,0.39094149]
[1724207978904,0.14400001,59517.0,59516.0,0.09309555]
[1724207979521,0.14400001,59517.0,59516.0,0.0179042]
[1724207980182,0.14400001,59517.0,59516.0,0.0680361]
[1724207980416,0.19769891,59517.0,59516.0,0.0179042]
[1724207980870,0.29769891,59517.0,59516.0,0.0179042]
[1724207981148,0.30069891,59517.0,59516.0,0.0179042]
[1724207981381,0.3424988,59517.0,59516.0,0.0179042]
[1724207981614,0.3414988,59517.0,59516.0,0.0179042]